[Event "Commonwealth Open 2019"]
[Site "Delhi"]
[Date "2019.07.06"]
[Round "8.7"]
[White "Krishna, C R G"]
[Black "Wagh, Suyog"]
[Result "1/2-1/2"]
[ECO "A00"]
[WhiteElo "2481"]
[BlackElo "2250"]
[Annotator "ChessBase"]
[PlyCount "32"]
[EventDate "2019.06.30"]
[EventType "swiss"]
[EventCountry "IND"]
[SourceTitle "playchess.com"]
[Source "ChessBase"]
[SourceQuality "1"]
[TimeControl "5400+30"]

1. g3 {[%emt 0:09:54]} Nf6 {[%emt 0:03:23]} 2. Bg2 {[%emt 0:00:08]} e5 {[%emt 0:00:19]} 3. c4 {[%emt 0:00:54]} d5 {[%emt 0:03:47]} 4. cxd5 {[%emt 0:00:08]} Nxd5 {[%emt 0:00:06]} 5. Nc3 {[%emt 0:00:13]} Nb6 {[%emt 0:00:07]} 6. Nf3 {[%emt 0:00:10]} Nc6 {[%emt 0:00:04]} 7. O-O {[%emt 0:00:20]} Be7 {[%emt 0:03:10]} 8. d3 {[%emt 0:02:24]} O-O {[%emt 0:01:37]} 9. Be3 {[%emt 0:00:36]} Re8 {[%emt 0:02:54]} 10. a3 {[%emt 0:08:21]} a5 {[%emt 0:09:14]} 11. Rc1 {[%emt 0:02:14]} Be6 {[%emt 0:05:53]} 12. Ne4 {[%emt 0:09:59]} Bd5 {[%emt 0:03:19]} 13. Nc3 {[%emt 0:03:49]} Be6 {[%emt 0:01:36]} 14. Ne4 {[%emt 0:00:15]} Bd5 {[%emt 0:02:11]} 15. Nc5 {[%emt 0:00:19]} Nd4 {[%emt 0:04:03]} 16. Ne4 {[%emt 0:15:53]} Nc6 {[%emt 0:08:43]} 1/2-1/2

[Event "Commonwealth Open 2019"]
[Site "Delhi"]
[Date "2019.07.06"]
[Round "8.8"]
[White "Kunte, Abhijit"]
[Black "Mahalakshmi, M."]
[Result "1-0"]
[ECO "E15"]
[WhiteElo "2478"]
[BlackElo "2245"]
[Annotator "ChessBase"]
[PlyCount "137"]
[EventDate "2019.06.30"]
[EventType "swiss"]
[EventCountry "IND"]
[SourceTitle "playchess.com"]
[Source "ChessBase"]
[SourceQuality "1"]
[TimeControl "5400+30"]

1. d4 {[%emt 0:00:57]} Nf6 {[%emt 0:00:00]} 2. c4 {[%emt 0:00:06]} e6 {[%emt 0:00:00]} 3. Nf3 {[%emt 0:00:13]} b6 {[%emt 0:00:00]} 4. g3 {[%emt 0:00:07]} Ba6 {[%emt 0:00:14]} 5. Qa4 {[%emt 0:03:40]} Bb7 {[%emt 0:01:44]} 6. Bg2 {[%emt 0:00:07]} c5 {[%emt 0:00:39]} 7. O-O {[%emt 0:05:18]} cxd4 {[%emt 0:02:55]} 8. Nxd4 {[%emt 0:00:05]} Bxg2 {[%emt 0:01:36]} 9. Kxg2 {[%emt 0:00:07]} Bc5 {[%emt 0:05:39]} 10. Rd1 {[%emt 0:01:43]} Qc8 {[%emt 0:06:33]} 11. Nc3 {[%emt 0:01:10]} Qb7+ {[%emt 0:04:51]} 12. f3 {[%emt 0:00:15]} O-O {[%emt 0:02:49]} 13. Bg5 {[%emt 0:00:14]} Be7 {[%emt 0:00:53]} 14. Bxf6 {[%emt 0:06:46]} Bxf6 {[%emt 0:01:08]} 15. Ne4 {[%emt 0:00:06]} Be7 {[%emt 0:03:44]} 16. Rac1 {[%emt 0:04:44]} a6 {[%emt 0:03:44]} 17. Qb3 {[%emt 0:03:07]} d6 {[%emt 0:04:08]} 18. c5 {[%emt 0:06:24]} dxc5 {[%emt 0:02:07]} 19. Nxc5 {[%emt 0:00:06]} Bxc5 {[%emt 0:00:52]} 20. Rxc5 {[%emt 0:00:07]} Nd7 {[%emt 0:03:44]} 21. Rc6 {[%emt 0:02:56]} Rab8 {[%emt 0:05:49]} 22. Qc3 {[%emt 0:10:00]} Nf6 {[%emt 0:06:46]} 23. e4 {[%emt 0:13:18]} Rbd8 {[%emt 0:05:07]} 24. Rc7 {[%emt 0:07:38]} Qa8 {[%emt 0:01:01]} 25. Rd2 {[%emt 0:01:42]} Qb8 {[%emt 0:09:36]} 26. Rc2 {[%emt 0:02:16]} h6 {[%emt 0:04:21]} 27. Rc4 {[%emt 0:03:12]} Qb7 {[%emt 0:06:14]} 28. Rc7 {[%emt 0:02:06]} Qb8 {[%emt 0:00:15]} 29. a4 {[%emt 0:00:37]} Rd7 {[%emt 0:05:29]} 30. Rxd7 {[%emt 0:00:19]} Nxd7 {[%emt 0:00:02]} 31. Nc6 {[%emt 0:04:33]} Qb7 {[%emt 0:00:47]} 32. Ne7+ {[%emt 0:00:26]} Kh7 {[%emt 0:00:32]} 33. Qc7 {[%emt 0:00:07]} Rb8 {[%emt 0:02:59]} 34. Qxb7 {[%emt 0:05:53]} Rxb7 {[%emt 0:00:01]} 35. Nc8 {[%emt 0:00:02]} Kg8 {[%emt 0:05:53]} 36. b4 {[%emt 0:03:37]} Kf8 {[%emt 0:01:59]} 37. Nd6 {[%emt 0:00:09]} Ra7 {[%emt 0:01:28]} 38. f4 {[%emt 0:00:55]} f6 {[%emt 0:01:20]} 39. Rc6 {[%emt 0:01:09]} Ra8 {[%emt 0:00:36]} 40. Rc7 {[%emt 0:00:41]} Ke7 {[%emt 0:01:16]} 41. Nc8+ {[%emt 0:00:06]} Ke8 {[%emt 0:00:34]} 42. Rc6 {[%emt 0:01:08]} b5 {[%emt 0:00:45]} 43. a5 {[%emt 0:01:00]} Kd8 {[%emt 0:00:46]} 44. Nb6 {[%emt 0:02:45]} Nxb6 {[%emt 0:00:17]} 45. axb6 {[%emt 0:00:29]} e5 {[%emt 0:00:34]} 46. fxe5 {[%emt 0:01:42]} fxe5 {[%emt 0:00:02]} 47. b7 {[%emt 0:00:17]} Rb8 {[%emt 0:00:10]} 48. Rxa6 {[%emt 0:00:05]} Rxb7 {[%emt 0:00:58]} 49. Re6 {[%emt 0:00:04]} Re7 {[%emt 0:00:57]} 50. Rb6 {[%emt 0:00:06]} Rc7 {[%emt 0:00:33]} 51. Rxb5 {[%emt 0:00:07]} Rc2+ {[%emt 0:00:02]} 52. Kh3 {[%emt 0:00:30]} Rc4 {[%emt 0:00:50]} 53. Rd5+ {[%emt 0:01:12]} Ke7 {[%emt 0:00:05]} 54. Rxe5+ {[%emt 0:00:08]} Kd6 {[%emt 0:00:46]} 55. Rf5 {[%emt 0:04:56]} Ke6 {[%emt 0:00:26]} 56. b5 {[%emt 0:00:07]} Rxe4 {[%emt 0:00:19]} 57. Rf4 {[%emt 0:00:05]} Re2 {[%emt 0:00:48]} 58. Rb4 {[%emt 0:00:10]} Kd7 {[%emt 0:00:23]} 59. b6 {[%emt 0:02:59]} Kc8 {[%emt 0:00:23]} 60. Rc4+ {[%emt 0:00:05]} Kb8 {[%emt 0:00:51]} 61. Rc7 {[%emt 0:00:08]} g5 {[%emt 0:00:36]} 62. Rh7 {[%emt 0:00:05]} Re6 {[%emt 0:00:32]} 63. b7 {[%emt 0:00:04]} Rb6 {[%emt 0:00:23]} 64. Kg4 {[%emt 0:00:06]} Rb2 {[%emt 0:00:20]} 65. Rxh6 {[%emt 0:00:07]} Rxb7 {[%emt 0:00:04]} 66. Rh8+ {[%emt 0:00:06]} Ka7 {[%emt 0:00:06]} 67. Kxg5 {[%emt 0:00:04]} Kb6 {[%emt 0:00:06]} 68. g4 {[%emt 0:00:06]} Kc6 {[%emt 0:00:04]} 69. Rd8 {[%emt 0:00:16] Kd5} 1-0

[Event "Commonwealth Open 2019"]
[Site "Delhi"]
[Date "2019.07.06"]
[Round "8.9"]
[White "Navalgund, Niranjan"]
[Black "Laxman, R.R."]
[Result "1-0"]
[ECO "E20"]
[WhiteElo "2326"]
[BlackElo "2437"]
[Annotator "NA"]
[PlyCount "75"]
[EventDate "2019.06.30"]
[EventType "swiss"]
[EventCountry "IND"]
[SourceTitle "playchess.com"]
[Source "ChessBase"]
[SourceQuality "1"]
[TimeControl "5400+30"]

1. d4 {[%emt 0:00:00]} Nf6 2. c4 {[%emt 0:00:00]} e6 {[%emt 0:00:17]} 3. Nc3 {[%emt 0:00:00]} Bb4 {[%emt 0:00:02]} 4. f3 {[%emt 0:00:00]} c5 {[%emt 0:01:17]} 5. d5 {[%emt 0:00:00]} Nh5 {[%emt 0:00:20]} 6. g3 {[%emt 0:08:45]} d6 {[%emt 0:00:48]} 7. e4 {[%emt 0:00:46]} O-O {[%emt 0:00:31]} 8. f4 {[%emt 0:04:48]} Nf6 {[%emt 0:00:40]} 9. e5 {[%emt 0:01:25]} Ne4 {[%emt 0:05:04]} 10. Qc2 {[%emt 0:05:13]} exd5 {[%emt 0:00:42]} 11. cxd5 {[%emt 0:00:06]} f5 {[%emt 0:25:45]} 12. e6 {[%emt 0:03:19]} Na6 {[%emt 0:01:36]} 13. Bg2 {[%emt 0:07:50]} Qf6 {[%emt 0:00:51]} 14. Nge2 {[%emt 0:04:34]} Nc7 {[%emt 0:01:54]} 15. O-O {[%emt 0:09:12]} Bxc3 {[%emt 0:00:50]} 16. Nxc3 {[%emt 0:00:53]} Qd4+ {[%emt 0:00:25]} 17. Kh1 {[%emt 0:00:02]} Nxd5 {[%emt 0:00:31]} 18. Nxe4 {[%emt 0:06:37]} fxe4 {[%emt 0:00:18]} 19. Rd1 {[%emt 0:01:13]} Qb4 {[%emt 0:05:42]} 20. a3 {[%emt 0:06:32]} Qa5 {[%emt 0:00:02]} 21. Qxe4 {[%emt 0:03:29]} Nf6 {[%emt 0:00:02]} 22. Qe2 {[%emt 0:00:47]} d5 {[%emt 0:00:30]} 23. f5 {[%emt 0:00:32]} Qa6 {[%emt 0:02:18]} 24. Qxa6 {[%emt 0:04:35]} bxa6 {[%emt 0:00:01]} 25. Rxd5 {[%emt 0:00:01]} Bb7 {[%emt 0:00:57]} 26. Rxc5 {[%emt 0:00:55]} Ne4 {[%emt 0:00:30]} 27. Re5 {[%emt 0:01:00]} Nf2+ {[%emt 0:00:46]} 28. Kg1 {[%emt 0:00:02]} Bxg2 {[%emt 0:00:16]} 29. Kxg2 {[%emt 0:00:23]} Nd3 {[%emt 0:00:52]} 30. Rd5 {[%emt 0:01:11]} Ne1+ {[%emt 0:00:07]} 31. Kf2 {[%emt 0:00:27]} Nc2 {[%emt 0:00:05]} 32. Rb1 {[%emt 0:00:04]} Rab8 {[%emt 0:00:03]} 33. g4 {[%emt 0:09:07]} Nxa3 {[%emt 0:00:29]} 34. Ra1 {[%emt 0:00:01]} Nc2 {[%emt 0:00:05]} 35. Ra4 {[%emt 0:01:08]} Rfc8 {[%emt 0:00:07]} 36. Rd7 {[%emt 0:04:26]} Nb4 {[%emt 0:00:51]} 37. Bd2 {[%emt 0:01:21]} a5 {[%emt 0:00:12]} 38. Bc3 {[%emt 0:01:07]} 1-0

[Event "Commonwealth Open 2019"]
[Site "Delhi"]
[Date "2019.07.06"]
[Round "8.10"]
[White "Divya, Deshmukh"]
[Black "Aaryan Varshney"]
[Result "1-0"]
[ECO "B53"]
[WhiteElo "2414"]
[BlackElo "2284"]
[Annotator "NA"]
[PlyCount "107"]
[EventDate "2019.06.30"]
[EventType "swiss"]
[EventCountry "IND"]
[SourceTitle "playchess.com"]
[Source "ChessBase"]
[SourceQuality "1"]
[TimeControl "5400+30"]

1. e4 {[%emt 0:00:00]} c5 2. Nf3 {[%emt 0:00:00]} d6 {[%emt 0:00:00]} 3. d4 {[%emt 0:00:00]} cxd4 {[%emt 0:00:00]} 4. Qxd4 {[%emt 0:00:00]} Nc6 {[%emt 0:00:00]} 5. Bb5 {[%emt 0:00:00]} Bd7 {[%emt 0:00:01]} 6. Bxc6 {[%emt 0:00:00]} Bxc6 {[%emt 0:00:06]} 7. Nc3 {[%emt 0:00:00]} Nf6 {[%emt 0:00:07]} 8. Bg5 {[%emt 0:00:00]} e6 {[%emt 0:00:06]} 9. O-O-O {[%emt 0:00:03]} Be7 {[%emt 0:00:05]} 10. Qd3 {[%emt 0:00:02]} Qa5 {[%emt 0:03:51]} 11. h4 {[%emt 0:00:29]} O-O {[%emt 0:00:16]} 12. Nd4 {[%emt 0:00:22]} Rfd8 {[%emt 0:00:25]} 13. Kb1 {[%emt 0:01:40]} Be8 {[%emt 0:02:21]} 14. f4 {[%emt 0:00:38]} a6 {[%emt 0:05:05]} 15. g4 {[%emt 0:01:52]} Rac8 {[%emt 0:01:56]} 16. Rhg1 {[%emt 0:07:28]} Qc5 {[%emt 0:04:56]} 17. f5 {[%emt 0:24:59]} Bd7 {[%emt 0:05:26]} 18. Bc1 {[%emt 0:03:53]} Qc4 {[%emt 0:05:03]} 19. Qf3 {[%emt 0:06:40]} Qb4 {[%emt 0:03:45]} 20. Nde2 {[%emt 0:07:08]} Bc6 {[%emt 0:19:09]} 21. Rd4 {[%emt 0:00:28]} Qa5 {[%emt 0:02:04]} 22. g5 {[%emt 0:07:57]} Nxe4 {[%emt 0:23:27]} 23. Nxe4 {[%emt 0:00:53]} exf5 24. Qc3 {[%emt 0:00:45]} Qb5 {[%emt 0:00:04]} 25. N4g3 {[%emt 0:08:08]} Be4 {[%emt 0:00:27]} 26. Qe3 {[%emt 0:00:13]} Bxc2+ {[%emt 0:01:05]} 27. Ka1 {[%emt 0:00:14]} Bf8 {[%emt 0:01:22]} 28. Nc3 {[%emt 0:03:37]} Qa5 {[%emt 0:03:19]} 29. Bd2 {[%emt 0:05:10]} Qc5 {[%emt 0:03:37]} 30. Rd5 {[%emt 0:01:20]} Qxe3 {[%emt 0:00:34]} 31. Bxe3 {[%emt 0:00:02]} Re8 {[%emt 0:01:07]} 32. Bd2 {[%emt 0:07:44]} Rc4 {[%emt 0:01:07]} 33. Nxf5 {[%emt 0:01:52]} Bxf5 {[%emt 0:01:42]} 34. Rxf5 {[%emt 0:00:01]} Rxh4 {[%emt 0:00:21]} 35. Rgf1 {[%emt 0:00:02]} Re7 {[%emt 0:01:38]} 36. Nd5 {[%emt 0:00:12]} Rd7 {[%emt 0:00:34]} 37. Bc3 {[%emt 0:00:24]} Re4 {[%emt 0:00:45]} 38. Kb1 {[%emt 0:01:30]} Re2 {[%emt 0:00:48]} 39. b3 {[%emt 0:00:13]} Re4 {[%emt 0:00:44]} 40. Bb2 {[%emt 0:00:19]} Re8 {[%emt 0:02:26]} 41. R5f3 {[%emt 0:01:12]} Re2 {[%emt 0:00:30]} 42. Rh1 {[%emt 0:03:21]} Rd2 {[%emt 0:00:30]} 43. Nb6 {[%emt 0:02:23]} Re7 {[%emt 0:01:28]} 44. Rfh3 {[%emt 0:00:11]} h6 {[%emt 0:04:13]} 45. Bc3 {[%emt 0:01:27]} Rf2 {[%emt 0:00:37]} 46. gxh6 {[%emt 0:00:13]} gxh6 {[%emt 0:00:09]} 47. Rg3+ {[%emt 0:02:25]} Kh7 {[%emt 0:00:01]} 48. Nd5 {[%emt 0:00:01]} Re6 {[%emt 0:00:24]} 49. Rhg1 {[%emt 0:00:07]} f6 {[%emt 0:03:33]} 50. Rg8 {[%emt 0:00:52]} Rf5 {[%emt 0:00:53]} 51. Rxf8 {[%emt 0:00:12]} Rxd5 {[%emt 0:00:17]} 52. Rf7+ {[%emt 0:00:12]} Kh8 {[%emt 0:00:04]} 53. Bxf6+ {[%emt 0:00:03]} Rxf6 {[%emt 0:00:04]} 54. Rxf6 {[%emt 0:00:03]} 1-0

[Event "Commonwealth Open 2019"]
[Site "Delhi"]
[Date "2019.07.06"]
[Round "8.11"]
[White "Saravana, Krishnan P."]
[Black "Nitin, S.."]
[Result "1-0"]
[ECO "B51"]
[WhiteElo "2290"]
[BlackElo "2398"]
[Annotator "NA"]
[PlyCount "129"]
[EventDate "2019.06.30"]
[EventType "swiss"]
[EventCountry "IND"]
[SourceTitle "playchess.com"]
[Source "ChessBase"]
[SourceQuality "1"]
[TimeControl "5400+30"]

1. e4 {[%emt 0:00:00]} c5 {[%emt 0:00:10]} 2. Nf3 {[%emt 0:00:00]} d6 {[%emt 0:00:07]} 3. Bb5+ {[%emt 0:00:26]} Nd7 {[%emt 0:00:11]} 4. c3 {[%emt 0:00:07]} Ngf6 {[%emt 0:01:05]} 5. Qe2 {[%emt 0:00:42]} a6 {[%emt 0:00:13]} 6. Ba4 {[%emt 0:00:43]} e5 {[%emt 0:00:22]} 7. O-O {[%emt 0:03:08]} Be7 {[%emt 0:00:34]} 8. d4 {[%emt 0:00:06]} b5 {[%emt 0:03:04]} 9. Bc2 {[%emt 0:00:26]} O-O {[%emt 0:00:11]} 10. a4 {[%emt 0:04:47]} Rb8 {[%emt 0:02:32]} 11. Nbd2 {[%emt 0:07:35]} Qc7 {[%emt 0:03:38]} 12. dxe5 {[%emt 0:03:12]} dxe5 {[%emt 0:00:24]} 13. c4 {[%emt 0:06:10]} b4 {[%emt 0:00:29]} 14. Rd1 {[%emt 0:01:36]} Re8 {[%emt 0:01:54]} 15. Nf1 {[%emt 0:03:28]} Bb7 {[%emt 0:03:15]} 16. Bg5 {[%emt 0:04:20]} Nf8 {[%emt 0:07:41]} 17. Bxf6 {[%emt 0:10:14]} Bxf6 {[%emt 0:00:28]} 18. Ne3 {[%emt 0:00:06]} Ne6 {[%emt 0:01:30]} 19. Nd5 {[%emt 0:00:39]} Qd8 {[%emt 0:01:16]} 20. a5 {[%emt 0:09:14]} Nd4 {[%emt 0:02:30]} 21. Nxd4 {[%emt 0:02:48]} exd4 {[%emt 0:00:17]} 22. Bd3 {[%emt 0:03:55]} Be5 {[%emt 0:11:19]} 23. g3 {[%emt 0:01:17]} g6 {[%emt 0:00:22]} 24. f4 {[%emt 0:04:01]} Bg7 {[%emt 0:00:35]} 25. b3 {[%emt 0:00:39]} Bc8 {[%emt 0:00:46]} 26. Re1 {[%emt 0:01:09]} Be6 {[%emt 0:09:00]} 27. Qf1 {[%emt 0:02:14]} Qc8 {[%emt 0:02:58]} 28. Nb6 {[%emt 0:01:08]} Qd8 {[%emt 0:02:51]} 29. Qf3 {[%emt 0:00:36]} f6 {[%emt 0:00:48]} 30. Ra2 {[%emt 0:00:50]} Bf7 {[%emt 0:01:14]} 31. Rae2 {[%emt 0:00:24]} Rb7 {[%emt 0:01:19]} 32. g4 {[%emt 0:02:16]} Rbe7 {[%emt 0:02:42]} 33. h4 {[%emt 0:00:50]} h6 {[%emt 0:04:12]} 34. Kh1 {[%emt 0:01:52]} g5 {[%emt 0:02:36]} 35. Nd5 {[%emt 0:02:55]} Bxd5 {[%emt 0:01:01]} 36. exd5 {[%emt 0:00:17]} Qd6 {[%emt 0:05:34]} 37. Bf5 {[%emt 0:02:39]} Rxe2 {[%emt 0:00:08]} 38. Rxe2 {[%emt 0:00:12]} Rxe2 {[%emt 0:00:04]} 39. Qxe2 {[%emt 0:00:09]} Kf8 {[%emt 0:00:26]} 40. Kg2 {[%emt 0:02:31]} Qxf4 {[%emt 0:01:56]} 41. Bg6 {[%emt 0:01:57]} Qe5 {[%emt 0:01:06]} 42. Qxe5 {[%emt 0:02:09]} fxe5 {[%emt 0:00:06]} 43. h5 {[%emt 0:00:08]} Ke7 {[%emt 0:03:03]} 44. Kf3 {[%emt 0:01:15]} Kd6 {[%emt 0:01:56]} 45. Bd3 {[%emt 0:05:25]} Bf6 {[%emt 0:01:59]} 46. Ke4 {[%emt 0:00:06]} Bd8 {[%emt 0:00:08]} 47. Kf5 {[%emt 0:00:05]} Bc7 {[%emt 0:07:26]} 48. Kf6 {[%emt 0:00:55]} Kd7 {[%emt 0:03:01]} 49. Be4 {[%emt 0:00:48]} Kd6 {[%emt 0:01:06]} 50. Bf5 {[%emt 0:03:48]} Bxa5 {[%emt 0:03:13]} 51. Kg6 {[%emt 0:00:07]} Ke7 {[%emt 0:00:03]} 52. Kxh6 {[%emt 0:02:05]} Kf6 {[%emt 0:01:00]} 53. Bg6 {[%emt 0:01:55]} Bd8 {[%emt 0:03:19]} 54. Kh7 {[%emt 0:00:06]} e4 {[%emt 0:00:02]} 55. Bxe4 {[%emt 0:00:08]} Kf7 {[%emt 0:00:04]} 56. d6 {[%emt 0:01:23]} Ke6 {[%emt 0:01:01]} 57. Kg6 {[%emt 0:00:43]} Kxd6 {[%emt 0:00:05]} 58. Kf5 {[%emt 0:00:25]} Ke7 {[%emt 0:02:38]} 59. Kxg5 {[%emt 0:01:31]} Ke6+ {[%emt 0:00:01]} 60. Kg6 {[%emt 0:00:11]} Ke5 {[%emt 0:00:05]} 61. h6 {[%emt 0:01:10]} Bf6 {[%emt 0:00:14]} 62. Bb1 {[%emt 0:00:26]} Bh8 {[%emt 0:00:19]} 63. g5 {[%emt 0:00:31]} Kf4 {[%emt 0:00:05]} 64. Kh5 {[%emt 0:00:11]} Ke5 {[%emt 0:00:33]} 65. g6 {[%emt 0:00:21] Kd5} 1-0

[Event "Commonwealth Open 2019"]
[Site "Delhi"]
[Date "2019.07.06"]
[Round "8.12"]
[White "Bhambure, Shantanu"]
[Black "Kulkarni, Bhakti"]
[Result "1-0"]
[ECO "D30"]
[WhiteElo "2248"]
[BlackElo "2380"]
[Annotator "NA"]
[PlyCount "79"]
[EventDate "2019.06.30"]
[EventType "swiss"]
[EventCountry "IND"]
[SourceTitle "playchess.com"]
[Source "ChessBase"]
[SourceQuality "1"]
[TimeControl "5400+30"]

1. d4 {[%emt 0:00:00]} d5 {[%emt 0:02:47]} 2. c4 {[%emt 0:00:00]} c6 {[%emt 0:00:16]} 3. Nf3 {[%emt 0:00:00]} Nf6 {[%emt 0:00:40]} 4. Nbd2 {[%emt 0:00:04]} e6 {[%emt 0:04:34]} 5. e3 {[%emt 0:01:10]} Nbd7 {[%emt 0:00:35]} 6. Bd3 {[%emt 0:00:43]} Bd6 {[%emt 0:00:39]} 7. O-O {[%emt 0:00:34]} O-O {[%emt 0:00:40]} 8. e4 {[%emt 0:01:14]} dxe4 {[%emt 0:02:33]} 9. Nxe4 {[%emt 0:00:07]} Nxe4 {[%emt 0:00:14]} 10. Bxe4 {[%emt 0:00:05]} Nf6 {[%emt 0:00:17]} 11. Bc2 {[%emt 0:01:55]} b6 {[%emt 0:02:12]} 12. Bg5 {[%emt 0:11:53]} Ba6 {[%emt 0:05:57]} 13. Qd3 {[%emt 0:07:19]} g6 {[%emt 0:00:06]} 14. Rad1 {[%emt 0:03:16]} Be7 {[%emt 0:01:10]} 15. Ne5 {[%emt 0:02:34]} Rc8 {[%emt 0:05:03]} 16. Qf3 {[%emt 0:04:00]} Bb7 {[%emt 0:03:33]} 17. Ba4 {[%emt 0:05:21]} Kg7 {[%emt 0:08:44]} 18. Bxc6 {[%emt 0:05:06]} Ba6 {[%emt 0:02:12]} 19. b3 {[%emt 0:06:02]} h6 {[%emt 0:02:02]} 20. Bf4 {[%emt 0:09:33]} Bd6 {[%emt 0:03:24]} 21. Qe3 {[%emt 0:03:31]} Rh8 {[%emt 0:01:02]} 22. Bf3 {[%emt 0:02:30]} Qc7 {[%emt 0:00:30]} 23. Rfe1 {[%emt 0:00:51]} h5 {[%emt 0:02:19]} 24. h3 {[%emt 0:02:24]} Ng8 {[%emt 0:00:30]} 25. d5 {[%emt 0:00:30]} f6 {[%emt 0:00:30]} 26. dxe6 {[%emt 0:00:30]} fxe5 {[%emt 0:00:30]} 27. Bxe5+ {[%emt 0:00:30]} Bxe5 {[%emt 0:00:30]} 28. Rd7+ {[%emt 0:00:30]} Ne7 {[%emt 0:00:30]} 29. Rxc7 {[%emt 0:00:30]} Bxc7 {[%emt 0:00:30]} 30. Qd4+ {[%emt 0:00:30]} Kh6 {[%emt 0:00:30]} 31. Qd7 {[%emt 0:00:30]} Nf5 {[%emt 0:00:30]} 32. Qa4 {[%emt 0:00:30]} Nd4 {[%emt 0:00:30]} 33. Qxa6 {[%emt 0:00:30]} Nxf3+ {[%emt 0:00:30]} 34. gxf3 {[%emt 0:00:30]} Bb8 {[%emt 0:00:30]} 35. Qb7 {[%emt 0:00:30]} Rce8 {[%emt 0:00:30]} 36. Qd5 {[%emt 0:00:30]} Re7 {[%emt 0:00:30]} 37. b4 {[%emt 0:00:30]} Bc7 {[%emt 0:00:30]} 38. c5 {[%emt 0:00:30]} Rd8 {[%emt 0:00:30]} 39. Qe4 {[%emt 0:00:30]} Kh7 {[%emt 0:00:30]} 40. Re3 {[%emt 0:00:30]} 1-0

[Event "Commonwealth Open 2019"]
[Site "Delhi"]
[Date "2019.07.06"]
[Round "8.13"]
[White "Sanskriti, Goyal"]
[Black "Vaishali, R."]
[Result "0-1"]
[ECO "D07"]
[WhiteElo "1951"]
[BlackElo "2338"]
[Annotator "NA"]
[PlyCount "108"]
[EventDate "2019.06.30"]
[EventType "swiss"]
[EventCountry "IND"]
[SourceTitle "playchess.com"]
[Source "ChessBase"]
[SourceQuality "1"]
[TimeControl "5400+30"]

1. d4 {[%emt 0:00:00]} d5 {[%emt 0:00:00]} 2. c4 {[%emt 0:00:14]} Nc6 {[%emt 0:00:00]} 3. Nf3 {[%emt 0:03:01]} Bg4 {[%emt 0:00:34]} 4. Nc3 {[%emt 0:04:31]} e6 {[%emt 0:03:28]} 5. cxd5 {[%emt 0:08:19]} exd5 {[%emt 0:00:19]} 6. Qb3 {[%emt 0:07:12]} Nf6 {[%emt 0:08:53]} 7. Bg5 {[%emt 0:12:52]} Na5 {[%emt 0:16:58]} 8. Qc2 {[%emt 0:11:44]} Be7 {[%emt 0:04:39]} 9. Ne5 {[%emt 0:01:57]} Be6 {[%emt 0:02:22]} 10. e3 {[%emt 0:00:53]} O-O {[%emt 0:06:58]} 11. Be2 {[%emt 0:06:04]} h6 {[%emt 0:03:30]} 12. Bh4 {[%emt 0:00:44]} Rc8 {[%emt 0:03:24]} 13. O-O {[%emt 0:04:32]} c5 {[%emt 0:01:05]} 14. dxc5 {[%emt 0:06:40]} Rxc5 {[%emt 0:01:17]} 15. Nd3 {[%emt 0:06:45]} Rc8 {[%emt 0:01:50]} 16. Nf4 {[%emt 0:01:37]} Nc4 {[%emt 0:08:58]} 17. Rfd1 {[%emt 0:05:17]} Qa5 {[%emt 0:09:49]} 18. Bxc4 {[%emt 0:04:11]} Rxc4 {[%emt 0:00:46]} 19. Qe2 {[%emt 0:00:56]} Rc5 {[%emt 0:12:06]} 20. Rd4 {[%emt 0:03:18]} Qa6 {[%emt 0:07:58]} 21. Qxa6 {[%emt 0:03:20]} bxa6 {[%emt 0:00:02]} 22. Rad1 {[%emt 0:00:36]} Rb8 {[%emt 0:01:42]} 23. h3 {[%emt 0:00:16]} g5 {[%emt 0:02:15]} 24. Nxe6 {[%emt 0:00:14]} fxe6 {[%emt 0:00:02]} 25. Bg3 {[%emt 0:00:01]} Rb7 {[%emt 0:00:46]} 26. e4 {[%emt 0:01:35]} Rxc3 {[%emt 0:01:20]} 27. bxc3 {[%emt 0:00:18]} Nxe4 {[%emt 0:00:04]} 28. Rxe4 {[%emt 0:03:31]} dxe4 {[%emt 0:00:02]} 29. Re1 {[%emt 0:00:01]} Kf7 {[%emt 0:02:42]} 30. Rxe4 {[%emt 0:00:03]} Rb6 {[%emt 0:00:34]} 31. Rc4 {[%emt 0:01:17]} Rb1+ {[%emt 0:00:27]} 32. Kh2 {[%emt 0:00:01]} Rb2 {[%emt 0:00:23]} 33. Ra4 {[%emt 0:00:50]} Rb6 {[%emt 0:00:27]} 34. Rc4 {[%emt 0:00:02]} Rb2 {[%emt 0:00:05]} 35. Rc7 {[%emt 0:01:32]} Kf6 {[%emt 0:00:19]} 36. a4 {[%emt 0:01:05]} Ra2 {[%emt 0:00:13]} 37. Rc4 {[%emt 0:00:01]} Bd8 {[%emt 0:00:56]} 38. f4 {[%emt 0:00:39]} Bb6 {[%emt 0:00:55]} 39. fxg5+ {[%emt 0:00:02]} hxg5 {[%emt 0:00:05]} 40. h4 {[%emt 0:00:53]} gxh4 {[%emt 0:00:17]} 41. Rxh4 {[%emt 0:00:19]} Rc2 {[%emt 0:01:02]} 42. Rc4 {[%emt 0:00:28]} Ba5 {[%emt 0:00:52]} 43. Be1 {[%emt 0:03:04]} Rc1 {[%emt 0:00:29]} 44. Bd2 {[%emt 0:00:02]} Rc2 {[%emt 0:00:04]} 45. Be1 {[%emt 0:00:02]} Re2 {[%emt 0:00:50]} 46. Bg3 {[%emt 0:01:11]} Bb6 {[%emt 0:00:13]} 47. Bf4 {[%emt 0:00:40]} e5 {[%emt 0:00:12]} 48. Bc1 {[%emt 0:00:33]} e4 {[%emt 0:00:46]} 49. Kh3 {[%emt 0:00:32]} Re1 {[%emt 0:00:29]} 50. Bf4 {[%emt 0:00:31]} Kf5 {[%emt 0:00:11]} 51. Bg3 {[%emt 0:00:15]} Rh1+ {[%emt 0:00:56]} 52. Bh2 {[%emt 0:00:07]} e3 {[%emt 0:00:45]} 53. g4+ {[%emt 0:00:23]} Kg6 {[%emt 0:00:22]} 54. Re4 {[%emt 0:00:11]} Bc7 {[%emt 0:00:20]} 0-1